fUST/lending_fUST_20260322
["ID","MTS","AMOUNT","RATE_DAILY","PERIOD"]
[408678852,1774109467857,-916.97212397,0.00019178,2]
[408678853,1774109467866,-814.2,0.00019178,2]
[408678854,1774109467876,-2562.8672,0.00019178,2]
[408678855,1774109467885,-531.9,0.00019178,2]
[408678856,1774109467895,-500.0,0.00019178,2]
[408678857,1774109467904,-500.0,0.00019178,2]
[408678858,1774109467914,-500.0,0.00019178,2]
[408678859,1774109467923,-500.0,0.00019178,2]
[408678860,1774109467933,-500.0,0.00019178,2]
[408678861,1774109467943,-500.0,0.00019178,2]
[408678862,1774109467952,-500.0,0.00019178,2]
[408678863,1774109467962,-500.0,0.00019178,2]
[408678864,1774109467971,-500.0,0.00019178,2]
[408678865,1774109467981,-500.0,0.00019178,2]
[408678866,1774109467990,-500.0,0.00019178,2]
[408678867,1774109468000,-500.0,0.00019178,2]
[408678868,1774109468009,-500.0,0.00019178,2]
[408678869,1774109468019,-500.0,0.00019178,2]
[408678870,1774109468029,-500.0,0.00019178,2]
[408678871,1774109468038,-500.0,0.00019178,2]
[408678872,1774109468048,-500.0,0.00019178,2]
[408678873,1774109468058,-500.0,0.00019178,2]
[408678874,1774109468067,-500.0,0.00019178,2]
[408678875,1774109468077,-500.0,0.00019178,2]
[408678876,1774109468087,-598.18555822,0.00019178,2]
[408678877,1774109468097,-2562.8672,0.00019178,2]
[408678878,1774109468108,-437.14,0.00019178,2]
[408678879,1774109468117,-1500.0,0.00019178,2]
[408678880,1774109468127,-2562.86,0.00019178,2]
[408678881,1774109468136,-2562.86,0.00019178,2]
[408678882,1774109468146,-2562.8672,0.00019178,2]
[408678883,1774109468155,-2562.8672,0.00019178,2]
[408678884,1774109468164,-2562.8672,0.00019178,2]
[408678885,1774109468174,-300.0,0.00019178,2]
[408678886,1774109468183,-300.0,0.00019178,2]
[408678887,1774109468193,-300.0,0.00019178,2]
[408678888,1774109468202,-300.0,0.00019178,2]
[408678889,1774109468211,-300.0,0.00019178,2]
[408678890,1774109468221,-300.0,0.00019178,2]
[408678891,1774109468231,-300.0,0.00019178,2]
[408678892,1774109468240,-300.0,0.00019178,2]
[408678893,1774109468251,-300.0,0.00019178,2]
[408678894,1774109468260,-300.0,0.00019178,2]
[408678895,1774109468270,-300.0,0.00019178,2]
[408678896,1774109468279,-300.0,0.00019178,2]
[408678897,1774109468290,-300.0,0.00019178,2]
[408678898,1774109468299,-300.0,0.00019178,2]
[408678899,1774109468309,-300.0,0.00019178,2]
[408678900,1774109468318,-300.0,0.00019178,2]
[408678901,1774109468327,-300.0,0.00019178,2]
[408678902,1774109468337,-300.0,0.00019178,2]
[408678903,1774109468347,-300.0,0.00019178,2]
[408678904,1774109468358,-300.0,0.00019178,2]
[408678905,1774109468367,-300.0,0.00019178,2]
[408678906,1774109468377,-300.0,0.00019178,2]
[408678907,1774109468387,-300.0,0.00019178,2]
[408678908,1774109468397,-300.0,0.00019178,2]
[408678909,1774109468406,-300.0,0.00019178,2]
[408678910,1774109468415,-300.0,0.00019178,2]
[408678911,1774109468425,-348.735422,0.00019178,2]
[408678912,1774109468435,-348.735422,0.00019178,2]
[408678913,1774109468445,-348.735422,0.00019178,2]
[408678914,1774109468454,-348.735422,0.00019178,2]
[408678915,1774109468463,-348.735422,0.00019178,2]
[408678916,1774109468473,-348.735422,0.00019178,2]
[408678917,1774109468483,-348.735422,0.00019178,2]
[408678918,1774109468493,-348.735422,0.00019178,2]
[408678919,1774109468502,-348.735422,0.00019178,2]
[408678920,1774109468512,-348.735422,0.00019178,2]
[408678921,1774109468522,-348.735422,0.00019178,2]
[408678922,1774109468531,-348.735422,0.00019178,2]
[408678923,1774109468541,-348.735422,0.00019178,2]
[408678924,1774109468550,-348.735422,0.00019178,2]
[408678925,1774109468560,-348.735422,0.00019178,2]
[408678926,1774109468570,-348.735422,0.00019178,2]
[408678927,1774109468579,-348.735422,0.00019178,2]
[408678928,1774109468589,-348.735422,0.00019178,2]
[408678929,1774109468599,-348.735422,0.00019178,2]
[408678930,1774109468608,-348.73542908,0.00019178,2]
[408678931,1774109468618,-151.0,0.00019178,2]
[408678932,1774109468628,-198.230662,0.00019178,2]
[408678933,1774109468638,-650.0,0.00019178,2]
[408678934,1774109468651,-3978.35763598,0.00019178,2]
[408678935,1774109468661,-5500.0,0.00019178,2]
[408678936,1774109468671,-10125.9954636,0.000192,2]
[408678937,1774109468683,-3151.06298349,0.00019205,5]
[408678938,1774109468693,-162.37944299,0.00019222,120]
[408678939,1774109468703,-185.04998779,0.00019231,60]
[408678940,1774109468712,-12437.22846887,0.00019294,2]
[408678941,1774109468726,-162.19789266,0.00019318,60]
[408678942,1774109468736,-10125.9954636,0.000194,2]
[408678943,1774109468747,-5000.0,0.00019441,2]
[408678944,1774109468757,-5000.0,0.00019441,2]
[408678945,1774109468766,-5000.0,0.00019441,2]
[408678946,1774109468775,-5000.0,0.00019441,2]
[408678947,1774109468785,-5000.0,0.00019441,2]
[408678948,1774109468794,-814.2,0.00019452,2]
[408678949,1774109468804,-450.0,0.00019452,2]
[408678950,1774109468814,-1000.0,0.000195,2]
[408678951,1774109468823,-153.43872844,0.00019505,120]
[408678952,1774109468833,-158.12551264,0.00019594,60]
[408678953,1774109468842,-10125.9954636,0.000196,2]
[408678954,1774109468853,-1000.0,0.0001962,5]
[408678955,1774109468862,-1000.0,0.0001964,5]
[408678956,1774109468875,-1000.0,0.0001966,5]
[408678957,1774109468885,-318.95607643,0.00019679,60]
[408678958,1774109468895,-321.5986262,0.00019679,120]
[408678959,1774109468904,-1000.0,0.0001968,5]
[408678960,1774109468914,-200.0,0.00019686,120]
[408678961,1774109468925,-1000.0,0.000197,5]
[408678962,1774109468934,-1000.0,0.0001972,5]
[408678963,1774109468949,-189.0,0.00019726,3]
[408678964,1774109468959,-549.98160302,0.00019726,2]
[408678965,1774109468969,-6000.0,0.00019726,2]
[408678966,1774109468979,-1000.0,0.0001974,5]
[408678967,1774109468989,-151.0,0.00019743,2]
[408678968,1774109468998,-1000.0,0.0001976,5]
[408678969,1774109469008,-1460.785511,0.0001976,5]
[408678970,1774109469017,-1000.0,0.0001978,5]
[408678971,1774109469027,-1000.0,0.0001978,5]
[408678972,1774109469037,-10125.9954636,0.000198,2]
[408678973,1774109469046,-1000.0,0.000198,5]
[408678974,1774109469057,-1000.0,0.000198,5]
[408678975,1774109469067,-152.0417379,0.00019807,120]
[408678976,1774109469076,-194.99977778,0.00019807,120]
[408678977,1774109469085,-1000.0,0.0001982,5]
[408678978,1774109469095,-1000.0,0.0001982,5]
[408678979,1774109469107,-1000.0,0.0001984,5]
[408678980,1774109469116,-1000.0,0.0001984,5]
[408678981,1774109469126,-1000.0,0.0001986,5]
[408678982,1774109469135,-1000.0,0.0001986,5]
[408678983,1774109469144,-1000.0,0.0001988,5]
[408678984,1774109469153,-1000.0,0.0001988,5]
[408678985,1774109469163,-2000.0,0.00019881,7]
[408678986,1774109469173,-2000.0,0.00019887,7]
[408678987,1774109469182,-2000.0,0.00019893,7]
[408678988,1774109469192,-252.97007024,0.00019898,120]
[408678989,1774109469201,-226.54350859,0.00019898,120]
[408678990,1774109469210,-237.29725647,0.00019898,120]
[408678991,1774109469220,-2000.0,0.00019899,7]
[408678992,1774109469230,-2500.0,0.000199,2]
[408678993,1774109469239,-1000.0,0.000199,5]
[408678994,1774109469248,-1000.0,0.000199,5]
[408678995,1774109469257,-2000.0,0.00019905,7]
[408678996,1774109469266,-2000.0,0.00019911,7]
[408678997,1774109469275,-2000.0,0.00019917,7]
[408678998,1774109469285,-1000.0,0.0001992,5]
[408678999,1774109469294,-1000.0,0.0001992,5]
[408679000,1774109469303,-2000.0,0.00019923,7]
[408679001,1774109469313,-2000.0,0.00019929,7]
[408679002,1774109469323,-2000.0,0.00019935,7]
[408679003,1774109469332,-1000.0,0.0001994,5]
[408679004,1774109469341,-1000.0,0.0001994,5]
[408679005,1774109469351,-2000.0,0.00019941,7]
[408679006,1774109469360,-2000.0,0.00019947,7]
[408679007,1774109469369,-2000.0,0.00019953,7]
[408679008,1774109469379,-2000.0,0.00019958,7]
[408679009,1774109469388,-1000.0,0.0001996,5]
[408679010,1774109469397,-1000.0,0.0001996,5]
[408679011,1774109469407,-2000.0,0.00019964,7]
[408679012,1774109469416,-2000.0,0.0001997,7]
[408679013,1774109469426,-2000.0,0.00019976,7]
[408679014,1774109469435,-1000.0,0.0001998,5]
[408679015,1774109469445,-1000.0,0.0001998,5]
[408679016,1774109469455,-2000.0,0.00019982,7]
[408679017,1774109469464,-2000.0,0.00019988,7]
[408679018,1774109469474,-2000.0,0.00019994,7]
[408679019,1774109469483,-501.25548144,0.0002,2]
[408679020,1774109469495,-639.0,0.0002,2]
[408679021,1774109469504,-2000.0,0.0002,15]
[408679022,1774109469514,-1500.0,0.0002,15]
[408679023,1774109469523,-14803.31662593,0.0002,2]
[408679024,1774109469532,-374.21004821,0.0002,2]
[408679025,1774109469542,-23000.0,0.0002,2]
[408679026,1774109469551,-204.15443483,0.0002,2]
[408679027,1774109469560,-400.0,0.0002,30]
[408679028,1774109469569,-338.0,0.0002,15]
[408679029,1774109469579,-18070.71870228,0.0002,2]
[408679030,1774109469588,-25000.0,0.0002,2]
[408679031,1774109469597,-155.95912867,0.0002,2]
[408679032,1774109469607,-1176.12104008,0.0002,30]
[408679033,1774109469616,-50000.0,0.0002,7]
[408679034,1774109469625,-10000.0,0.0002,4]
[408679035,1774109469637,-19909.37848105,0.0002,20]
[408679036,1774109469647,-206.96298654,0.0002,2]
[408679037,1774109469659,-764.0,0.0002,30]
[408679038,1774109469669,-368.6071,0.0002,61]
[408679039,1774109469679,-5000.0,0.0002,2]
[408679040,1774109469688,-150.0,0.0002,2]
[408679041,1774109469848,-207.0,0.0002,10]
[408679042,1774109469858,-1988.0,0.0002,2]
[408679043,1774109469867,-32605.00892043,0.0002,20]
[408679044,1774109469877,-1035.0,0.0002,2]
[408679045,1774109469887,-1001.0,0.0002,30]
[408679046,1774109469897,-10000.0,0.0002,2]
[408679047,1774109469907,-2536.0,0.0002,5]
[408679048,1774109469917,-464.0,0.0002,5]
[408679049,1774109469927,-200.0,0.0002,2]
[408679050,1774109469937,-5501.71639405,0.0002,5]
[408679051,1774109469946,-880.0,0.0002,2]
[408679052,1774109469955,-25401.0,0.0002,7]
[408679053,1774109469965,-1697.29,0.0002,2]
[408679054,1774109469976,-10125.9954636,0.0002,2]
[408679055,1774109469985,-300.0,0.0002,2]
[408679056,1774109469994,-1000.0,0.0002,5]
[408679057,1774109470004,-1000.0,0.0002,5]
[408679058,1774109470013,-151.55000802,0.0002,2]
[408679059,1774109470023,-550.0,0.0002,2]
[408679060,1774109470033,-250.0,0.0002,10]
[408679061,1774109470043,-1000.0,0.0002,2]
[408679062,1774109470052,-1289.0464,0.000201,2]
[408679063,1774109470062,-250.0,0.000201,10]
[408679064,1774109470072,-1697.29,0.00020172,2]
[408679065,1774109470083,-10125.9954636,0.000202,2]
[408679066,1774109470093,-250.0,0.000202,10]
[408679067,1774109470102,-6500.0,0.00020274,2]
[408679068,1774109470111,-250.0,0.000203,10]
[408679069,1774109470123,-5000.0,0.00020332,2]
[408679070,1774109470132,-1697.29,0.00020345,2]
[408679071,1774109470142,-460.2,0.000204,2]
[408679072,1774109470151,-2020.38,0.000204,2]
[408679073,1774109470161,-1630.9945,0.000204,2]
[408679074,1774109470170,-1501.39,0.000204,2]
[408679075,1774109470180,-1501.39,0.000204,2]
[408679076,1774109470192,-1214.695,0.000204,2]
[408679077,1774109470201,-1214.69,0.000204,2]
[408679078,1774109470211,-1901.26,0.000204,2]
[408679079,1774109470220,-452.68,0.000204,2]
[408679080,1774109470230,-362.14,0.000204,2]
[408679081,1774109470241,-211.25,0.000204,2]
[408679082,1774109470250,-1362.035,0.000204,2]
[408679083,1774109470259,-1362.03,0.000204,2]
[408679084,1774109470268,-1496.52,0.000204,2]
[408679085,1774109470277,-1496.52,0.000204,2]
[408679086,1774109470286,-1210.75,0.000204,2]
[408679087,1774109470296,-1210.75,0.000204,2]
[408679088,1774109470305,-1895.09,0.000204,2]
[408679089,1774109470314,-451.21,0.000204,2]
[408679090,1774109470323,-360.96,0.000204,2]
[408679091,1774109470334,-210.56,0.000204,2]
[408679092,1774109470344,-1779.5249,0.000204,2]
[408679093,1774109470354,-1781.454,0.000204,2]
[408679094,1774109470363,-1781.454,0.000204,2]
[408679095,1774109470372,-1781.45,0.000204,2]
[408679096,1774109470382,-1802.023,0.000204,2]
[408679097,1774109470392,-1802.023,0.000204,2]
[408679098,1774109470401,-1802.02,0.000204,2]
[408679099,1774109470411,-528.8073,0.000204,2]
[408679100,1774109470420,-160.27,0.000204,2]
[408679101,1774109470429,-291.38,0.000204,2]
[408679102,1774109470440,-336.9681,0.000204,2]
[408679103,1774109470449,-10125.9954636,0.000204,2]
[408679104,1774109470458,-250.0,0.000204,10]
[408679105,1774109470468,-351.71342,0.000205,10]
[408679106,1774109470478,-1697.29,0.00020517,2]
[408679107,1774109470489,-207.74191161,0.00020532,60]
[408679108,1774109470498,-180.01620146,0.00020548,2]
[408679109,1774109470508,-7311.164404,0.00020548,2]
[408679110,1774109470517,-650.0,0.00020548,2]
[408679111,1774109470527,-10125.9954636,0.000206,2]
[408679112,1774109470536,-1398.42144084,0.0002061,2]
[408679113,1774109470546,-1697.29,0.0002069,2]
[408679114,1774109470555,-151.0,0.00020743,2]
[408679115,1774109470564,-10125.9954636,0.000208,2]
[408679116,1774109470574,-190.0,0.00020822,3]
[408679117,1774109470583,-7000.0,0.00020822,2]
[408679118,1774109470592,-1697.29,0.00020862,2]
[408679119,1774109470603,-258.17776037,0.000209,2]
[408679120,1774109470612,-2500.0,0.000209,2]
[408679121,1774109470621,-224.003,0.00020943,2]
[408679122,1774109470631,-218.2748668,0.00020981,2]
[408679123,1774109470641,-1000.0,0.00021,21]
[408679124,1774109470654,-279.25754331,0.00021,2]
[408679125,1774109470663,-50000.0,0.00021,2]
[408679126,1774109470673,-10000.0,0.00021,5]
[408679127,1774109470683,-1429.01444164,0.00021,7]
[408679128,1774109470692,-6000.0,0.00021,2]
[408679129,1774109470702,-10125.9954636,0.00021,2]
[408679130,1774109470711,-3000.0,0.00021,2]
[408679131,1774109470722,-3000.0,0.0002101,2]
[408679132,1774109470731,-3000.0,0.0002102,2]
[408679133,1774109470741,-387.13390605,0.00021021,2]
[408679134,1774109470752,-3000.0,0.0002103,2]
[408679135,1774109470762,-1697.29,0.00021034,2]
[408679136,1774109470771,-3000.0,0.0002104,2]
[408679137,1774109470781,-3000.0,0.0002105,2]
[408679138,1774109470790,-3000.0,0.0002106,2]
[408679139,1774109470799,-3000.0,0.0002107,2]
[408679140,1774109470808,-3000.0,0.0002108,2]
[408679141,1774109470818,-3000.0,0.0002109,2]
[408679142,1774109470830,-750.0,0.00021096,2]
[408679143,1774109470842,-3000.0,0.000211,2]
[408679144,1774109470853,-3000.0,0.0002111,2]
[408679145,1774109470862,-3000.0,0.0002112,2]
[408679146,1774109470872,-3000.0,0.0002113,2]
[408679147,1774109470881,-3000.0,0.0002114,2]
[408679148,1774109470890,-3000.0,0.0002115,2]
[408679149,1774109470900,-3000.0,0.0002116,2]
[408679150,1774109470909,-3000.0,0.0002117,2]
[408679151,1774109470919,-3000.0,0.0002118,2]
[408679152,1774109470928,-3000.0,0.0002119,2]
[408679153,1774109470938,-12437.22846887,0.00021195,2]
[408679154,1774109470947,-855.8356686,0.000212,30]
[408679155,1774109470959,-41931.04821518,0.000212,2]
[408679156,1774109470968,-10125.9954636,0.000212,2]
[408679157,1774109470978,-3000.0,0.000212,2]
[408679158,1774109470987,-1697.29,0.00021207,2]
[408679159,1774109470997,-3000.0,0.0002121,2]
[408679160,1774109471010,-3000.0,0.0002122,2]
[408679161,1774109471019,-3000.0,0.0002123,2]
[408679162,1774109471028,-3000.0,0.0002124,2]
[408679163,1774109471038,-3000.0,0.0002125,2]
[408679164,1774109471047,-3000.0,0.0002126,2]
[408679165,1774109471056,-3000.0,0.0002127,2]
[408679166,1774109471066,-3000.0,0.0002128,2]
[408679167,1774109471075,-3000.0,0.0002129,2]
[408679168,1774109471085,-3000.0,0.000213,2]
[408679169,1774109471094,-3000.0,0.0002131,2]
[408679170,1774109471104,-3000.0,0.0002132,2]
[408679171,1774109471114,-3000.0,0.0002133,2]
[408679172,1774109471124,-3000.0,0.0002134,2]
[408679173,1774109471133,-3000.0,0.0002135,2]
[408679174,1774109471143,-7500.0,0.0002137,2]
[408679175,1774109471155,-1697.29,0.00021379,2]
[408679176,1774109471164,-1046.74658531,0.000215,2]
[408679177,1774109471172,-12948.60429545,0.000215,2]
[408679178,1774109471182,-10125.9954636,0.000215,2]
[408679179,1774109471191,-1697.29,0.00021552,2]
[408679180,1774109471200,-850.0,0.00021644,2]
[408679181,1774109471210,-10125.9954636,0.000217,2]
[408679182,1774109471219,-1697.29,0.00021724,2]
[408679183,1774109471230,-1697.29,0.00021897,2]
[408679184,1774109471241,-2500.0,0.000219,2]
[408679185,1774109471251,-10125.9954636,0.000219,2]
[408679186,1774109471260,-876.2714,0.00021908,2]
[408679187,1774109471270,-808.542934,0.00021918,2]
[408679188,1774109471280,-151.0,0.00021918,2]
[408679189,1774109471289,-151.0,0.00021918,2]
[408679190,1774109471298,-151.0,0.00021918,2]
[408679191,1774109471308,-151.0,0.00021918,2]
[408679192,1774109471317,-151.0,0.00021918,2]
[408679193,1774109471327,-151.0,0.00021918,2]
[408679194,1774109471336,-151.0,0.00021918,2]
[408679195,1774109471346,-151.0,0.00021918,2]
[408679196,1774109471355,-151.0,0.00021918,2]
[408679197,1774109471364,-151.0,0.00021918,2]
[408679198,1774109471374,-151.0,0.00021918,2]
[408679199,1774109471385,-151.0,0.00021918,2]
[408679200,1774109471394,-151.0,0.00021918,2]
[408679201,1774109471404,-151.0,0.00021918,2]
[408679202,1774109471414,-151.0,0.00021918,2]
[408679203,1774109471423,-151.0,0.00021918,2]
[408679204,1774109471432,-151.0,0.00021918,2]
[408679205,1774109471441,-151.0,0.00021918,2]
[408679206,1774109471451,-196.748981,0.00021918,2]
[408679207,1774109471459,-151.0,0.00021918,2]
[408679208,1774109471469,-264.883173,0.00021918,2]
[408679209,1774109471478,-5000.0,0.00021918,120]
[408679210,1774109471487,-192.0,0.00021918,6]
[408679211,1774109471496,-8000.0,0.00021918,2]
[408679212,1774109471506,-500.0,0.00021918,2]
[408679213,1774109471516,-500.0,0.00021918,2]
[408679214,1774109471526,-293.93576307,0.00021918,2]
[408679215,1774109471535,-500.0,0.00021918,2]
[408679216,1774109471545,-500.0,0.00021918,2]
[408679217,1774109471555,-190.45004515,0.00021918,2]
[408679218,1774109471564,-205.31,0.00021941,2]
[408679219,1774109471574,-1506.323,0.00022,2]
[408679220,1774109471583,-1506.32,0.00022,2]
[408679221,1774109471593,-403.05,0.00022,2]
[408679222,1774109471604,-2020.76,0.00022,2]
[408679223,1774109471613,-1634.88,0.00022,2]
[408679224,1774109471623,-835.7708,0.00022,2]
[408679225,1774109471632,-199.0,0.00022,2]
[408679226,1774109471643,-1036.61897096,0.00022,2]
[408679227,1774109471654,-1697.29,0.00022069,2]
[408679228,1774109471663,-10125.9954636,0.000221,2]
[408679229,1774109471673,-950.0,0.00022192,2]
[408679230,1774109471683,-1697.29,0.00022241,2]
[408679231,1774109471693,-1232.4091,0.000223,2]
[408679232,1774109471703,-1496.755,0.000223,2]
[408679233,1774109471712,-1496.75,0.000223,2]
[408679234,1774109471722,-891.0641,0.000223,2]
[408679235,1774109471733,-2171.97,0.000223,2]
[408679236,1774109471743,-2171.97,0.000223,2]
[408679237,1774109471752,-2171.97,0.000223,2]
[408679238,1774109471762,-1802.536,0.000223,2]
[408679239,1774109471771,-1802.536,0.000223,2]
[408679240,1774109471781,-1802.53,0.000223,2]
[408679241,1774109471791,-403.05,0.000223,2]
[408679242,1774109471800,-301.82,0.000223,2]
[408679243,1774109471810,-10125.9954636,0.000223,2]
[408679244,1774109471820,-1697.29,0.00022414,2]
[408679245,1774109471830,-300.0,0.00022466,2]
[408679246,1774109471839,-8500.0,0.00022466,2]
[408679247,1774109471851,-1040.70536394,0.000225,2]
[408679248,1774109471860,-200.0,0.00022503,120]
[408679249,1774109471870,-1697.29,0.00022586,2]
[408679250,1774109471879,-10125.9954636,0.000226,2]
[408679251,1774109471888,-833.0658791,0.0002274,2]
[408679252,1774109471898,-151.0,0.00022743,2]
[408679253,1774109471907,-1697.29,0.00022759,2]
[408679254,1774109471918,-1032.6,0.0002277,120]
[408679255,1774109471927,-10125.9954636,0.000228,2]
[408679256,1774109471937,-300.0,0.00022806,2]
[408679257,1774109471947,-10284.843079,0.00022888,30]
[408679258,1774109471956,-2500.0,0.000229,2]
[408679259,1774109471967,-1697.29,0.00022931,2]
[408679260,1774109471976,-1000.0,0.00023,2]
[408679261,1774109471986,-1000.0,0.00023,23]
[408679262,1774109471997,-302.93631706,0.00023,117]
[408679263,1774109472006,-555.67505,0.00023,60]
[408679264,1774109472016,-10125.9954636,0.00023,2]
[408679265,1774109472026,-270.83333333,0.00023,2]
[408679266,1774109472037,-1028.0,0.00023,2]
[408679267,1774109472048,-194.0,0.00023014,8]
[408679268,1774109472058,-450.0,0.00023014,2]
[408679269,1774109472069,-9000.0,0.00023014,2]
[408679270,1774109472079,-415.69296469,0.00023021,2]
[408679271,1774109472089,-12437.22846887,0.00023096,2]
[408679272,1774109472099,-1697.29,0.00023103,2]
[408679273,1774109472109,-10125.9954636,0.000232,2]
[408679274,1774109472119,-1697.29,0.00023276,2]
[408679275,1774109472130,-10000.0,0.00023288,120]
[408679276,1774109472141,-280.7985011,0.00023441,2]
[408679277,1774109472152,-324.7906716,0.00023442,2]
[408679278,1774109472162,-1697.29,0.00023448,2]
[408679279,1774109472173,-3816.74224833,0.000235,2]
[408679280,1774109472183,-10125.9954636,0.000235,2]
[408679281,1774109472194,-600.0,0.00023562,2]
[408679282,1774109472204,-7042.66850151,0.00023562,2]
[408679283,1774109472213,-1697.29,0.00023621,2]
[408679284,1774109472223,-10125.9954636,0.000237,2]
[408679285,1774109472233,-1697.29,0.00023793,2]
[408679286,1774109472243,-2500.0,0.000239,2]
[408679287,1774109472253,-408.4383,0.000239,2]
[408679288,1774109472263,-1501.615,0.000239,2]
[408679289,1774109472273,-1501.61,0.000239,2]
[408679290,1774109472283,-793.5892,0.000239,2]
[408679291,1774109472293,-1506.323,0.000239,2]
[408679292,1774109472303,-326.1161,0.000239,2]
[408679293,1774109472313,-10125.9954636,0.000239,2]
[408679294,1774109472324,-1697.29,0.00023966,2]
[408679295,1774109472333,-1000.0,0.00024,4]
[408679296,1774109472343,-1748.88512279,0.00024,2]
[408679297,1774109472353,-469.1334722,0.00024,2]
[408679298,1774109472362,-25611.0,0.00024,30]
[408679299,1774109472372,-50000.0,0.00024,7]
[408679300,1774109472382,-270.83333333,0.00024,7]
[408679301,1774109472392,-1028.0,0.00024,2]
[408679302,1774109472402,-195.0,0.0002411,12]
[408679303,1774109472412,-750.0,0.0002411,2]
[408679304,1774109472421,-1697.29,0.00024138,2]
[408679305,1774109472431,-1738.8785,0.000242,2]
[408679306,1774109472441,-211.25,0.000242,2]
[408679307,1774109472450,-210.56,0.000242,2]
[408679308,1774109472460,-10125.9954636,0.000242,2]
[408679309,1774109472470,-1697.29,0.0002431,2]
[408679310,1774109472479,-378.0317772,0.0002436,2]
[408679311,1774109472489,-10125.9954636,0.000244,2]
[408679312,1774109472499,-151.0,0.00024423,2]
[408679313,1774109472508,-224.003,0.00024443,2]
[408679314,1774109472518,-1697.29,0.00024483,2]
[408679315,1774109472527,-400.0,0.000245,14]
[408679316,1774109472537,-843.0,0.000245,7]
[408679317,1774109472547,-355127.27,0.00024597,5]
[408679318,1774109472557,-685.179,0.00024648,7]
[408679319,1774109472566,-156342.87673094,0.0002465,2]
[408679320,1774109472723,-517.54222623,0.0002465,2]
[408679321,1774109472733,-1532.94807797,0.0002465,2]
[408679322,1774109472743,-1697.29,0.00024655,2]
[408679323,1774109472753,-160.0,0.00024658,2]
[408679324,1774109472763,-160.0,0.00024658,2]
[408679325,1774109472772,-160.0,0.00024658,2]
[408679326,1774109472782,-160.0,0.00024658,2]
[408679327,1774109472791,-160.0,0.00024658,2]
[408679328,1774109472802,-207.84568384,0.00024658,2]
[408679329,1774109472811,-900.0,0.00024658,2]
[408679330,1774109472822,-380.0,0.00024658,2]
[408679331,1774109472833,-200.0,0.00024658,2]
[408679332,1774109472842,-500.0,0.00024658,2]
[408679333,1774109472852,-500.0,0.00024658,2]
[408679334,1774109472862,-500.0,0.00024658,2]
[408679335,1774109472872,-500.0,0.00024658,2]
[408679336,1774109472882,-500.0,0.00024658,2]
[408679337,1774109472892,-500.0,0.00024658,2]
[408679338,1774109472903,-500.0,0.00024658,2]
[408679339,1774109472914,-500.0,0.00024658,2]
[408679340,1774109472925,-500.0,0.00024658,2]
[408679341,1774109472936,-500.0,0.00024658,2]
[408679342,1774109472947,-500.0,0.00024658,2]
[408679343,1774109472958,-324.4711115,0.00024658,2]
[408679344,1774109472970,-500.0,0.00024658,120]
[408679345,1774109472981,-500.0,0.00024658,120]
[408679346,1774109472991,-500.0,0.00024658,120]
[408679347,1774109473002,-166.24625183,0.00024658,120]
[408679348,1774109473012,-10125.9954636,0.000247,2]
[408679349,1774109473023,-3922.18906912,0.000248,7]
[408679350,1774109473033,-5000.0,0.000248,30]
[408679351,1774109473043,-5000.0,0.000248,30]